bitfinex-derivatives/quotes_SOLF0:USTF0_20250415
["timestamp","ask_amount","ask_price","bid_price","bid_amount"]
[1744714030556,0.05141006,131.95,131.93,7.63035084]
[1744714030756,0.05141006,131.95,131.93,0.05055084]
[1744714031257,0.05141006,131.95,131.93,7.63065084]
[1744714032260,0.05141006,131.95,131.93,0.05055084]
[1744714032755,7.5798,131.94,131.93,0.05055084]
[1744714033453,7.5813,131.92,131.88,39.3727]
[1744714033760,13.68805596,131.97,131.88,31.7896]
[1744714034059,7.5825,131.9,131.88,29.64]
[1744714034259,29.64,131.94,131.86,2.044]
[1744714034458,29.64,131.94,131.86,13.72175596]
[1744714034662,0.05711873,131.91,131.89,0.05620931]
[1744714034964,31.6503,131.97,131.89,29.64]
[1744714035560,43.32805596,131.97,131.84,43.33825596]
[1744714035760,7.5822,131.9,131.86,7.584]
[1744714036060,11.67775596,131.95,131.89,0.05217802]
[1744714036256,0.05081258,131.93,131.84,45.40275596]
[1744714036460,29.64,131.93,131.84,45.40275596]
[1744714036663,0.05793546,131.9,131.87,0.05806597]
[1744714037863,7.64003546,131.9,131.87,7.64146597]
[1744714038164,7.64003546,131.9,131.87,0.05806597]
[1744714038360,0.05793546,131.9,131.87,7.64156597]
[1744714038664,0.05793546,131.9,131.87,0.05806597]
[1744714038863,7.5832,131.88,131.87,0.05806597]
[1744714039067,0.05793546,131.9,131.87,0.05806597]
[1744714039869,7.5832,131.88,131.87,0.05806597]
[1744714040167,29.64,131.89,131.82,7.5864]
[1744714040668,41.31775596,131.89,131.79,1.9655]
[1744714040971,29.64,131.89,131.8,41.31775596]
[1744714041171,0.04968989,131.86,131.84,7.585]
[1744714041768,0.04968989,131.86,131.85,7.5849]
[1744714041964,0.04968989,131.86,131.83,0.05491585]
[1744714042167,7.5855,131.84,131.83,0.05491585]
[1744714042371,29.64,131.84,131.74,29.64]
[1744714042572,29.64,131.84,131.75,7.36715511]
[1744714042765,3.9603,131.85,131.77,11.67775596]
[1744714042965,3.9603,131.85,131.78,29.64]
[1744714043363,7.63606156,131.83,131.8,0.05815951]
[1744714043869,7.5869,131.82,131.8,0.05815951]
[1744714044868,0.04956156,131.83,131.8,0.05815951]
[1744714046573,7.587,131.82,131.8,0.05815951]
[1744714046773,0.04956156,131.83,131.8,0.05815951]
[1744714047674,7.5872,131.81,131.8,0.05815951]
[1744714047876,0.04956156,131.83,131.8,0.05815951]
[1744714048666,2.1163,131.93,131.81,85.35551192]
[1744714048871,7.5806,131.93,131.89,7.5826]
[1744714049374,7.5811,131.92,131.88,7.583]
[1744714049675,0.05057373,131.91,131.89,0.0480642]
[1744714049875,0.05057373,131.91,131.89,7.6305642]
[1744714050173,0.05057373,131.91,131.89,0.0480642]
[1744714050574,7.5821,131.9,131.89,0.0480642]
[1744714051477,0.05057373,131.91,131.89,0.0480642]
[1744714052076,7.5821,131.9,131.89,0.0480642]
[1744714059578,0.05057373,131.91,131.89,0.0480642]
[1744714061179,7.63207373,131.91,131.89,0.0480642]
[1744714061874,7.5821,131.9,131.89,0.0480642]
[1744714062673,0.05057373,131.91,131.85,1.9624]
[1744714062877,30.71057373,131.91,131.85,1.9624]
[1744714063082,7.5839,131.87,131.85,1.9624]
[1744714063475,30.66,131.91,131.85,1.9624]
[1744714063679,0.0552883,131.87,131.85,2.01991841]
[1744714064786,30.66,131.94,131.85,13.69767437]
[1744714065077,30.66,131.94,131.87,11.67775596]
[1744714065277,30.66,131.94,131.88,7.5828]
[1744714065478,30.66,131.94,131.87,11.67775596]
[1744714065781,7.63857095,131.92,131.89,0.05682095]
[1744714066379,0.05737095,131.92,131.89,7.63932095]
[1744714066685,0.05737095,131.92,131.89,0.05682095]
[1744714067181,7.63867095,131.92,131.89,0.05682095]
[1744714067381,0.05737095,131.92,131.89,0.05682095]
[1744714067580,7.63857095,131.92,131.89,0.05682095]
[1744714068885,0.05737095,131.92,131.89,0.05682095]
[1744714069985,7.5821,131.9,131.89,0.05682095]
[1744714071087,7.5818,131.91,131.89,0.05682095]
[1744714071987,7.5821,131.9,131.89,0.05682095]
[1744714072786,0.05737095,131.92,131.89,0.05682095]
[1744714073487,7.5816,131.91,131.89,0.05682095]
[1744714074189,7.5821,131.9,131.89,0.05682095]
[1744714077692,7.5818,131.91,131.89,0.05682095]
[1744714077893,0.05737095,131.92,131.89,7.37884502]
[1744714078389,0.05737095,131.92,131.9,7.5821]
[1744714079192,0.05737095,131.92,131.91,7.5815]
[1744714080698,30.66,132.0,131.91,37.98202407]
[1744714080896,4.1903,132.02,131.96,7.32202407]
[1744714081092,7.5776,131.98,131.95,30.66]
[1744714081492,7.32202407,132.0,131.95,30.66]
[1744714081688,7.5779,131.98,131.95,30.66]
[1744714081893,7.32202407,131.98,131.96,0.05244101]
[1744714082195,14.90202407,131.98,131.89,30.66]
[1744714082397,7.32202407,131.96,131.89,38.2423]
[1744714082791,7.32202407,131.96,131.89,30.66]
[1744714082993,7.5802,131.94,131.9,7.582]
[1744714083293,7.62840337,131.94,131.91,0.05407279]
[1744714083797,7.5804,131.93,131.91,0.05407279]
[1744714083998,0.04820337,131.94,131.91,0.05407279]
[1744714084300,7.5809,131.92,131.91,0.05407279]
[1744714084499,0.04820337,131.94,131.91,0.05407279]
[1744714085004,0.04820337,131.94,131.91,7.37609686]
[1744714085189,42.17232407,132.02,131.93,7.32202407]
[1744714085394,40.05502407,132.02,131.94,7.5793]
[1744714085794,7.5778,131.98,131.94,7.5793]
[1744714085996,7.32202407,132.0,131.93,38.2401]
[1744714086302,7.5786,131.97,131.95,0.04954168]
[1744714086896,0.0515572,131.98,131.95,7.37156575]
[1744714087097,0.0515572,131.98,131.97,7.32202407]
[1744714087292,0.0515572,131.98,131.97,37.56202407]
[1744714087802,0.0515572,131.98,131.97,45.14002407]
[1744714088001,0.0515572,131.98,131.97,37.56202407]
[1744714088203,0.0515572,131.98,131.97,30.24]
[1744714089505,0.0515572,131.98,131.95,7.62844168]
[1744714090395,7.6290572,131.98,131.95,0.04954168]
[1744714090705,0.0515572,131.98,131.95,0.04954168]
[1744714091004,0.0515572,131.98,131.96,7.5784]
[1744714091206,0.0515572,131.98,131.96,7.32202407]
[1744714091404,0.0515572,131.98,131.96,9.43112407]
[1744714091603,32.3354,132.04,131.96,9.43112407]
[1744714092407,7.5766,132.0,131.96,9.43112407]
[1744714092808,0.05283803,131.99,131.97,7.63609946]
[1744714093007,0.05283803,131.99,131.97,0.05829946]
[1744714093208,0.05283803,131.99,131.98,7.32202407]
[1744714093505,0.05283803,131.99,131.98,45.13952407]
[1744714095400,2.1161,132.06,131.98,45.13952407]
[1744714095401,583.34202407,132.07,132.0,7.5762]
[1744714095604,585.41482407,132.07,132.0,7.5762]
[1744714095898,7.575,132.03,131.98,37.56202407]
[1744714096610,0.05758579,132.02,131.99,7.62804464]
[1744714096809,0.05758579,132.02,131.99,0.05164464]
[1744714097209,0.05758579,132.02,132.0,7.576]
[1744714098811,0.05758579,132.02,132.01,7.5757]
[1744714100011,30.22,132.1,132.04,7.5737]
[1744714100403,7.5712,132.09,132.05,7.32202407]
[1744714100604,4.0194,132.11,132.06,7.5728]
[1744714100803,4.0194,132.11,132.05,7.32202407]
[1744714101002,7.573,132.06,132.02,30.22]
[1744714101203,7.573,132.06,132.02,37.7948]
[1744714101408,0.05002694,132.05,132.03,0.0568438]
[1744714101714,0.05324863,132.05,132.03,0.04992859]
[1744714103513,0.05324863,132.05,132.04,7.574]
[1744714104114,4.0194,132.11,132.06,7.5725]
[1744714104411,11.34142407,132.11,132.03,11.44312407]
[1744714105013,7.573,132.06,132.03,14.89642407]
[1744714105213,0.05134267,132.06,132.03,0.04849673]
[1744714105618,7.574,132.04,132.03,0.04849673]
[1744714106613,7.5753,132.02,131.99,30.22]
[1744714107715,7.63176733,132.02,131.99,30.26916082]
[1744714108217,7.63176733,132.02,131.99,37.84596082]
[1744714108416,0.05646733,132.02,131.99,37.59118489]
[1744714108723,0.05646733,132.02,132.01,14.89772407]
[1744714111518,7.5736,132.05,132.03,7.5746]
[1744714111717,30.22,132.08,132.03,7.32202407]
[1744714111924,1.9469,132.11,132.05,7.32202407]
[1744714112224,7.5715,132.09,132.06,7.5724]
[1744714112425,7.5715,132.09,132.05,37.54202407]
[1744714112726,0.05273723,132.08,132.06,7.62972383]
[1744714113026,7.62463723,132.08,132.06,7.62972383]
[1744714113226,0.05273723,132.08,132.06,0.05712383]
[1744714113825,7.62473723,132.08,132.06,0.05712383]
[1744714114128,0.05273723,132.08,132.06,0.05712383]
[1744714115031,0.05273723,132.08,132.07,7.5723]
[1744714115727,2.0142,132.15,132.11,7.5697]
[1744714116231,9.5821,132.15,132.11,7.5697]
[1744714116530,7.5679,132.15,132.12,7.5694]
[1744714116729,7.5679,132.15,132.09,30.22]
[1744714116927,7.61618144,132.15,132.12,0.05715102]
[1744714117128,0.04828144,132.15,132.12,0.05715102]
[1744714118030,0.04828144,132.15,132.09,30.22]
[1744714118230,11.67894103,132.14,132.06,29.58]
[1744714118429,7.5703,132.11,132.07,7.5717]
[1744714118621,7.5703,132.11,132.06,29.58]
[1744714119132,0.05413679,132.1,132.08,7.5716]
[1744714119427,0.05413679,132.1,132.07,0.05441817]
[1744714120332,0.05413679,132.1,132.08,7.5715]
[1744714121029,0.05413679,132.1,132.09,7.5712]
[1744714121528,0.05413679,132.1,132.08,7.5715]
[1744714122234,0.05413679,132.1,132.09,7.5712]
[1744714122634,0.05413679,132.1,132.07,0.05441817]
[1744714123135,0.05413679,132.1,132.08,7.5715]
[1744714123531,11.67894103,132.23,132.07,0.05441817]
[1744714123735,4.082,132.21,132.1,11.67894103]
[1744714124033,4.082,132.21,132.11,29.58]
[1744714124232,7.5655,132.19,132.15,7.5675]
[1744714124631,7.5655,132.19,132.16,0.05513913]
[1744714124934,0.05536853,132.18,132.16,0.05513913]
[1744714126336,0.05536853,132.18,132.16,7.62223913]
[1744714126938,0.05536853,132.18,132.17,7.5666]
[1744714127343,0.05536853,132.18,132.16,0.05513913]
[1744714128937,7.5666,132.17,132.16,0.05513913]
[1744714133444,7.62176853,132.18,132.16,0.05513913]
[1744714134440,7.5666,132.17,132.16,0.05513913]
[1744714134939,7.62166853,132.18,132.16,0.05513913]
[1744714135143,0.05536853,132.18,132.16,0.05513913]
[1744714135742,0.05536853,132.18,132.16,7.62203913]
[1744714135945,0.05536853,132.18,132.16,0.05513913]
[1744714137750,0.05536853,132.18,132.16,7.62193913]
[1744714138247,0.05536853,132.18,132.17,7.5666]
[1744714140952,7.5641,132.22,132.18,7.5657]
[1744714141447,7.5641,132.22,132.16,29.56]
[1744714141944,7.5641,132.22,132.18,0.05484024]
[1744714142150,0.04074184,132.2,132.18,0.05484024]
[1744714142751,0.04074184,132.2,132.19,7.5654]
[1744714144358,0.04074184,132.2,132.18,7.62054024]
[1744714144655,0.04074184,132.2,132.18,0.05484024]
[1744714145158,0.04074184,132.2,132.19,7.5654]
[1744714145562,6.0181,132.27,132.19,7.29215593]
[1744714145757,13.579,132.27,132.2,29.56]
[1744714145960,7.29215593,132.26,132.2,29.56]
[1744714146160,7.5635,132.23,132.2,29.56]
[1744714146563,7.5635,132.23,132.2,29.60949172]
[1744714149459,7.5641,132.22,132.2,29.60949172]
[1744714149762,13.31025593,132.27,132.2,29.60949172]
[1744714150265,7.5622,132.25,132.21,7.5639]
[1744714150564,7.5622,132.25,132.22,0.0539851]
[1744714151061,7.29215593,132.26,132.22,0.0539851]
[1744714151362,7.29215593,132.24,132.22,0.0539851]
[1744714151658,7.5631,132.23,132.22,0.0539851]
[1744714152764,7.5649,132.2,132.17,29.48]
[1744714152966,36.77215593,132.24,132.17,29.48]
[1744714153463,7.5646,132.21,132.17,29.48]
[1744714153761,7.5646,132.21,132.18,0.05030948]
[1744714153962,0.0531755,132.2,132.18,7.34246541]
[1744714154163,0.0531755,132.2,132.19,7.5654]
[1744714154466,35.4981,132.27,132.18,9.30746541]
[1744714154662,3.9865,132.27,132.24,7.5625]
[1744714154964,3.9865,132.27,132.2,7.29215593]
[1744714154965,29.48,132.3,132.22,36.77215593]
[1744714155364,7.29215593,132.29,132.22,29.48]
[1744714155569,9.39785593,132.29,132.25,0.0501463]
[1744714156872,2.1057,132.29,132.25,0.0501463]
[1744714157559,7.5604,132.28,132.25,0.0501463]
[1744714158258,29.48,132.33,132.25,0.0501463]
[1744714158458,29.48,132.33,132.24,7.29215593]
[1744714158669,29.48,132.33,132.28,0.056289]
[1744714159065,7.5589,132.31,132.28,0.056289]
[1744714160067,29.48,132.33,132.28,0.056289]
[1744714160569,7.5597,132.29,132.28,0.056289]
[1744714161873,7.5594,132.3,132.28,0.056289]
[1744714162171,29.48,132.33,132.28,0.056289]
[1744714162669,7.5594,132.3,132.28,0.056289]
[1744714162873,29.48,132.33,132.28,0.056289]
[1744714163070,37.0375,132.33,132.28,7.34844493]
[1744714163273,29.46,132.36,132.3,7.29215593]
[1744714163470,29.46,132.36,132.31,7.5583]
[1744714163667,29.46,132.36,132.32,0.05699671]
[1744714163870,7.5565,132.35,132.32,0.05699671]
[1744714164266,29.46,132.36,132.32,7.61489671]
[1744714164475,29.46,132.36,132.32,0.05699671]
[1744714165070,7.5563,132.35,132.32,0.05699671]
[1744714165271,7.29215593,132.38,132.32,0.05699671]
[1744714166873,7.5574,132.33,132.32,0.05699671]
[1744714167075,36.75215593,132.34,132.27,29.46]
[1744714167572,7.5594,132.3,132.27,29.46]
[1744714167872,36.75215593,132.34,132.27,29.46]
[1744714168074,7.5594,132.3,132.27,29.46]
[1744714168379,7.5594,132.3,132.29,0.05462747]
[1744714169567,14.85155593,132.3,132.29,0.05462747]
[1744714169772,7.5613,132.27,132.24,2.0029]
[1744714170076,36.75215593,132.3,132.24,2.0029]
[1744714170875,7.5629,132.24,132.2,37.0245]
[1744714171174,0.0486234,132.23,132.2,37.0245]
[1744714171372,0.0486234,132.23,132.21,7.34722012]
[1744714171874,29.46,132.3,132.21,7.34722012]
[1744714172073,7.5605,132.28,132.24,7.5625]
[1744714172278,7.5605,132.28,132.23,7.29215593]
[1744714172476,7.5605,132.28,132.24,31.4548]
[1744714172776,42.78055593,132.33,132.26,7.5613]
[1744714173074,0.04769835,132.31,132.28,0.05442629]
[1744714173276,7.56,132.29,132.28,0.05442629]
[1744714173475,0.04769835,132.31,132.28,0.05442629]
[1744714173671,7.5594,132.3,132.28,0.05442629]
[1744714174173,0.04769835,132.31,132.28,0.05442629]
[1744714174374,7.5596,132.3,132.28,0.05442629]
[1744714176581,7.5597,132.29,132.28,0.05442629]
[1744714178682,7.5619,132.26,132.22,2.05]
[1744714179185,7.5619,132.26,132.23,7.5629]
[1744714179879,7.61373025,132.26,132.23,7.61367127]
[1744714181178,0.05183025,132.26,132.23,7.61367127]
[1744714181374,0.05183025,132.26,132.24,7.5626]
[1744714181884,0.05183025,132.26,132.23,0.05077127]
[1744714182486,7.5623,132.25,132.23,0.05077127]
[1744714183385,0.05183025,132.26,132.24,7.5626]
[1744714183582,0.05183025,132.26,132.23,0.05077127]
[1744714184190,7.5624,132.25,132.23,0.05077127]
[1744714185089,7.61353025,132.26,132.23,7.61387127]
[1744714185286,0.05183025,132.26,132.23,0.05077127]
[1744714186391,7.61343025,132.26,132.23,7.61367127]
[1744714186888,0.05183025,132.26,132.23,0.05077127]
[1744714187287,7.5622,132.25,132.23,0.05077127]
[1744714188393,7.5626,132.24,132.23,0.05077127]
[1744714189287,0.05183025,132.26,132.17,7.29215593]
[1744714189494,7.29215593,132.2,132.14,33.4952]
[1744714189991,7.5664,132.18,132.14,33.4952]
[1744714190285,7.29215593,132.2,132.14,33.4952]
[1744714190286,7.29215593,132.2,132.14,41.0631]
[1744714190491,7.61701334,132.17,132.15,0.04922107]
[1744714190691,0.05001334,132.17,132.15,0.04922107]
[1744714190892,7.61681334,132.17,132.15,0.04922107]
[1744714191295,0.05001334,132.17,132.15,0.04922107]
[1744714193696,0.05001334,132.17,132.15,7.61682107]
[1744714194097,0.05001334,132.17,132.15,0.04922107]
[1744714194994,7.34216927,132.17,132.15,0.04922107]
[1744714195694,7.5671,132.16,132.15,0.04922107]
[1744714195997,29.46,132.16,132.08,29.46]
[1744714196401,7.5696,132.12,132.09,7.5708]
[1744714196902,7.62292162,132.12,132.09,7.62147087]
[1744714197199,7.57,132.11,132.09,7.62147087]
[1744714197599,7.57,132.11,132.09,0.05067087]
[1744714197902,0.05332162,132.12,132.09,0.05067087]
[1744714198091,7.5702,132.11,132.09,0.05067087]
[1744714198600,7.5706,132.1,132.09,0.05067087]
[1744714200400,0.05332162,132.12,132.09,0.05067087]
[1744714200602,2.1125,132.18,132.09,36.8228268]
[1744714200812,2.1125,132.18,132.09,36.77215593]
[1744714201002,2.1125,132.18,132.12,7.5691]
[1744714201302,2.1125,132.18,132.09,36.77215593]
[1744714201503,7.5684,132.14,132.11,7.5697]
[1744714201803,7.62347448,132.14,132.11,7.6179153]
[1744714203505,0.05507448,132.14,132.11,0.0482153]
[1744714203705,0.05507448,132.14,132.11,7.34037123]
[1744714204604,0.05507448,132.14,132.12,7.569]
[1744714205103,0.05507448,132.14,132.12,7.5691]
[1744714205301,551.63215593,132.26,132.13,36.77215593]
[1744714205507,551.63215593,132.26,132.17,7.29215593]
[1744714205508,3.9729,132.25,132.17,7.29215593]
[1744714205703,3.9729,132.25,132.17,36.77215593]
[1744714206208,7.564,132.22,132.18,7.5657]
[1744714206408,7.564,132.22,132.2,0.05107873]
[1744714206607,0.05027336,132.23,132.2,0.05107873]
[1744714207310,7.61367336,132.23,132.2,0.05107873]
[1744714208104,0.05027336,132.23,132.2,7.61587873]
[1744714208407,0.05027336,132.23,132.2,0.05107873]
[1744714208808,0.05027336,132.23,132.21,7.5639]
[1744714209010,0.05027336,132.23,132.21,7.29215593]
[1744714209211,0.05027336,132.23,132.21,36.75215593]
[1744714209409,1.9941,132.28,132.24,7.5622]
[1744714209410,7.5606,132.28,132.24,7.5622]
[1744714209605,40.83085593,132.32,132.24,7.29215593]
[1744714209904,7.56,132.29,132.24,7.29215593]
[1744714210101,33.5387,132.32,132.24,7.29215593]
[1744714210304,33.5387,132.32,132.26,7.29215593]
[1744714210509,0.05790824,132.29,132.27,0.05592023]
[1744714212812,7.61760824,132.29,132.27,0.05592023]
[1744714213213,0.05790824,132.29,132.27,0.05592023]
[1744714213912,0.05790824,132.29,132.27,7.61642023]
[1744714217821,0.05790824,132.29,132.27,0.05592023]
[1744714219319,0.05790824,132.29,132.27,7.61652023]
[1744714219621,0.05790824,132.29,132.27,0.05592023]
[1744714219821,6.187,132.37,132.27,7.34807616]
[1744714220115,7.29215593,132.36,132.28,1.9482]
[1744714220718,7.559,132.31,132.28,1.9482]
[1744714220919,7.559,132.31,132.28,2.00154684]
[1744714221617,7.5592,132.3,132.28,2.00154684]
[1744714221808,7.29215593,132.36,132.28,1.9482]
[1744714222010,7.29215593,132.36,132.28,9.24035593]
[1744714222216,6.187,132.37,132.31,0.05680896]
[1744714223922,4.1151,132.37,132.31,0.05680896]
[1744714224421,7.556,132.36,132.32,7.5577]
[1744714224622,11.40725593,132.37,132.31,0.05680896]
[1744714225518,7.5573,132.34,132.31,0.05680896]
[1744714226324,7.5574,132.33,132.31,0.05680896]
[1744714226823,7.557,132.34,132.31,0.05680896]
[1744714227027,11.40725593,132.37,132.31,7.61530896]
[1744714227218,4.1151,132.37,132.31,0.05680896]
[1744714227415,11.40725593,132.37,132.31,0.05680896]
[1744714227617,7.29215593,132.35,132.31,0.05680896]
[1744714228117,29.44,132.34,132.31,0.05680896]
[1744714228620,7.29215593,132.32,132.24,2.0219]
[1744714229325,7.5606,132.28,132.24,9.5842]
[1744714229625,7.5612,132.27,132.24,2.0219]
[1744714229825,7.6120928,132.27,132.25,0.05163531]
[1744714230328,7.5614,132.26,132.25,0.05163531]
[1744714231227,0.0508928,132.27,132.25,7.61343531]
[1744714231424,0.0508928,132.27,132.26,7.29215593]
[1744714231629,29.44,132.34,132.26,36.73215593]
[1744714231928,7.5594,132.3,132.27,7.5608]
[1744714232529,7.29215593,132.33,132.26,29.44]
[1744714232729,7.29215593,132.33,132.27,0.05094835]
[1744714232926,7.5601,132.29,132.27,0.05094835]
[1744714234235,7.5603,132.28,132.27,0.05094835]
[1744714236028,7.29215593,132.29,132.23,29.44]
[1744714236232,7.29215593,132.27,132.23,29.44]
[1744714236732,7.29215593,132.27,132.2,574.08]
[1744714236942,7.29215593,132.27,132.2,581.6446]
[1744714237132,7.5628,132.24,132.22,0.05661538]
[1744714237430,0.05141056,132.25,132.22,0.05661538]
[1744714238435,7.5631,132.23,132.22,0.05661538]
[1744714240836,0.05141056,132.25,132.22,7.34877131]
[1744714241035,0.05141056,132.25,132.24,7.29215593]
[1744714241235,29.44,132.33,132.24,36.73215593]
[1744714241434,6.0859,132.35,132.28,7.29215593]
[1744714241637,4.0923,132.35,132.3,7.29215593]
[1744714242244,7.5571,132.34,132.31,0.05133276]
[1744714243040,4.0923,132.35,132.31,0.05133276]
[1744714243537,7.558,132.32,132.31,0.05133276]
[1744714243737,29.44,132.34,132.26,29.44]
[1744714244432,7.5603,132.28,132.26,29.44]
[1744714244833,7.60863248,132.28,132.26,29.49487572]
[1744714245840,7.5608,132.27,132.26,29.49487572]
[1744714246137,7.5608,132.27,132.26,0.05487572]
[1744714246338,0.04833248,132.28,132.26,0.05487572]
[1744714246539,0.04833248,132.28,132.23,29.44]
[1744714246750,0.04833248,132.28,132.18,13.59106692]
[1744714247042,7.564,132.22,132.18,1.9471]
[1744714247238,7.564,132.22,132.18,31.3871]
[1744714247739,0.04805172,132.21,132.19,0.05582235]
[1744714248536,0.04805172,132.21,132.2,7.5649]
[1744714248838,29.44,132.29,132.2,11.64396692]
[1744714249040,29.44,132.29,132.22,11.64396692]
[1744714249334,43.15176692,132.32,132.23,29.44]
[1744714249939,0.0561606,132.28,132.26,0.05294174]
[1744714250545,7.5608,132.27,132.26,0.05294174]
[1744714251041,0.0561606,132.28,132.26,0.05294174]
[1744714251740,7.5608,132.27,132.26,0.05294174]
[1744714252944,7.5626,132.24,132.23,29.44]
[1744714253444,29.44,132.28,132.2,29.44]
[1744714253637,7.5632,132.23,132.2,37.0046]
[1744714253944,2.0941,132.27,132.2,37.0046]
[1744714254244,0.05646042,132.23,132.2,37.05683778]
[1744714255844,7.61986042,132.23,132.2,37.05683778]
[1744714256243,0.05646042,132.23,132.21,7.5638]
[1744714256450,0.05646042,132.23,132.2,29.49223778]
[1744714257045,7.61996042,132.23,132.2,37.05683778]
[1744714257247,7.61996042,132.23,132.2,29.49223778]
[1744714257949,7.61996042,132.23,132.21,7.5643]
[1744714258247,7.61996042,132.23,132.2,29.49223778]
[1744714258548,7.61996042,132.23,132.2,37.05673778]
[1744714259251,0.05646042,132.23,132.2,29.49223778]
[1744714259749,7.61986042,132.23,132.21,7.564]
[1744714260049,0.05646042,132.23,132.2,29.49223778]
[1744714260652,7.61986042,132.23,132.21,7.564]
[1744714260853,0.05646042,132.23,132.2,29.49223778]
[1744714261054,7.61996042,132.23,132.2,37.05663778]
[1744714261352,7.61996042,132.23,132.2,29.49223778]
[1744714261954,7.61996042,132.23,132.21,7.564]
[1744714262348,7.5637,132.22,132.2,37.05683778]
[1744714262548,0.05646042,132.23,132.2,29.49223778]
[1744714262752,7.61996042,132.23,132.2,29.49223778]
[1744714262953,0.05646042,132.23,132.21,7.5639]
[1744714263151,2.0556,132.31,132.21,11.64396692]
[1744714263353,7.56,132.29,132.25,11.64396692]
[1744714263552,7.56,132.29,132.26,37.001]
[1744714263754,7.56,132.29,132.26,29.44]
[1744714264055,7.5594,132.3,132.26,29.44]
[1744714264255,0.05619737,132.29,132.27,0.04940964]
[1744714264954,7.61599737,132.29,132.27,0.04940964]
[1744714265149,0.05619737,132.29,132.27,0.04940964]
[1744714265657,7.5603,132.28,132.27,0.04940964]
[1744714267057,7.563,132.24,132.2,2.0423]
[1744714267257,7.563,132.24,132.2,29.44]
[1744714267452,2.1501,132.27,132.2,29.44]
[1744714268158,0.05500589,132.25,132.22,7.61729745]
[1744714268657,7.61710589,132.25,132.22,0.05389745]
[1744714269257,0.05500589,132.25,132.22,0.05389745]
[1744714269649,0.05500589,132.25,132.23,7.5629]
[1744714270048,0.05500589,132.25,132.22,0.05389745]
[1744714270452,7.61700589,132.25,132.22,7.61719745]
[1744714270657,0.05500589,132.25,132.22,0.05389745]
[1744714270856,0.05500589,132.25,132.23,7.5631]
[1744714271657,0.05500589,132.25,132.22,0.05389745]
[1744714272256,0.05500589,132.25,132.23,7.5629]
[1744714272451,0.05500589,132.25,132.22,0.05389745]
[1744714272658,0.05500589,132.25,132.24,7.5626]
[1744714272957,0.05500589,132.25,132.24,36.9826]
[1744714275755,7.5606,132.28,132.25,7.5614]
[1744714276960,7.61272958,132.28,132.25,7.61144883]
[1744714277663,7.61272958,132.28,132.26,7.5614]
[1744714277966,7.61272958,132.28,132.25,11.70641995]
[1744714277967,0.05212958,132.28,132.25,11.70641995]
[1744714278265,0.05212958,132.28,132.27,7.5608]
[1744714278759,4.1253,132.35,132.29,7.5591]
[1744714278962,31.5199,132.36,132.28,29.42]
[1744714279160,29.42,132.36,132.29,11.65637112]
[1744714279355,11.65637112,132.35,132.25,31.3702]
[1744714279565,7.56,132.29,132.25,31.3702]
[1744714279762,7.56,132.29,132.26,0.04858414]
[1744714279966,7.56,132.29,132.26,7.60968414]
[1744714281365,7.5594,132.3,132.27,7.5608]
[1744714281763,7.5594,132.3,132.27,7.6092539]
[1744714282166,2.0622,132.33,132.27,7.6092539]
[1744714282567,7.5594,132.3,132.27,7.6092539]
[1744714282774,2.0622,132.33,132.27,7.6091539]
[1744714283065,13.71857112,132.33,132.27,0.0484539]
[1744714284273,7.5595,132.3,132.27,7.6092539]
[1744714286571,7.5587,132.31,132.28,7.56]
[1744714286765,2.0622,132.33,132.27,0.0484539]
[1744714286960,2.0622,132.33,132.27,29.4684539]
[1744714287470,7.5582,132.32,132.29,7.5595]
[1744714287671,7.5582,132.32,132.29,7.61370082]
[1744714288167,7.5587,132.31,132.29,0.05420082]
[1744714289176,7.5591,132.3,132.29,0.05420082]
[1744714289473,2.0622,132.33,132.29,0.05420082]
[1744714289871,1.9958,132.34,132.29,0.05420082]
[1744714290072,9.27407741,132.34,132.29,0.05420082]
[1744714290270,7.5591,132.3,132.29,0.05420082]
[1744714292174,7.5588,132.31,132.29,0.05420082]
[1744714293277,7.5591,132.3,132.29,0.05420082]
[1744714293779,7.5589,132.31,132.29,0.05420082]
[1744714294377,7.5563,132.35,132.29,7.33247823]
[1744714294778,7.27827741,132.35,132.29,0.05420082]
[1744714295269,29.42,132.35,132.29,0.05420082]
[1744714295474,7.5572,132.34,132.29,0.05420082]
[1744714295667,7.27827741,132.33,132.29,0.05420082]